[Event "The Kvibergspelen 2024"]
[Site "Kviberg Park Hotel & Conference, Krutvagen 2, Gothenburg, Sweden"]
[Date "2024.09.06"]
[Round "4.11"]
[White "Dingertz, Gustav"]
[Black "Nilsson, Patrik"]
[Result "1-0"]
[TimeControl "15 minutes + 5 seconds per move from move one (Round 1 - 4) / 90 minutes + 30 seconds per move from move one (Round 5 - 8)"]
[WhiteFideId "1767917"]
[BlackFideId "1708171"]
[WhiteElo "1938"]
[BlackElo "2124"]

1. e4 {[%clk 00:15:08]} {[%emt 00:00:02]} e6 {[%clk 00:15:09]} {[%emt
00:00:02]} 2. d4 {[%clk 00:15:04]} {[%emt 00:00:09]} d5 {[%clk 00:15:13]}
{[%emt 00:00:02]} 3. e5 {[%clk 00:15:08]} {[%emt 00:00:01]} c5 {[%clk
00:15:15]} {[%emt 00:00:02]} 4. c3 {[%clk 00:15:12]} {[%emt 00:00:01]} Qb6
{[%clk 00:15:17]} {[%emt 00:00:03]} 5. Nf3 {[%clk 00:15:14]} {[%emt 00:00:02]}
Nc6 {[%clk 00:15:21]} {[%emt 00:00:03]} 6. a3 {[%clk 00:15:17]} {[%emt
00:00:01]} f6 {[%clk 00:15:10]} {[%emt 00:00:15]} 7. exf6 {[%clk 00:14:31]}
{[%emt 00:00:51]} Nxf6 {[%clk 00:15:13]} {[%emt 00:00:03]} 8. Be2 {[%clk
00:14:34]} {[%emt 00:00:02]} Bd6 {[%clk 00:14:30]} {[%emt 00:00:48]} 9. O-O
{[%clk 00:14:33]} {[%emt 00:00:05]} O-O {[%clk 00:14:21]} {[%emt 00:00:15]} 10.
h3 {[%clk 00:13:10]} {[%emt 00:01:28]} Bd7 {[%clk 00:13:25]} {[%emt 00:01:01]}
11. b4 {[%clk 00:10:49]} {[%emt 00:02:26]} cxd4 {[%clk 00:13:28]} {[%emt
00:00:02]} 12. cxd4 {[%clk 00:10:50]} {[%emt 00:00:03]} e5 {[%clk 00:13:06]}
{[%emt 00:00:28]} 13. dxe5 {[%clk 00:10:24]} {[%emt 00:00:31]} Nxe5 {[%clk
00:13:07]} {[%emt 00:00:04]} 14. Bb2 {[%clk 00:10:20]} {[%emt 00:00:10]} Rae8
{[%clk 00:10:57]} {[%emt 00:02:14]} 15. Nbd2 {[%clk 00:09:58]} {[%emt
00:00:26]} Bb5 {[%clk 00:10:04]} {[%emt 00:00:59]} 16. Bxb5 {[%clk 00:09:24]}
Qxb5 {[%clk 00:10:06]} {[%emt 00:00:42]} 17. Nd4 {[%clk 00:08:12]} {[%emt
00:01:16]} Qb6 {[%clk 00:09:17]} {[%emt 00:00:55]} 18. Rc1 {[%clk 00:07:27]}
{[%emt 00:00:50]} Nd3 {[%clk 00:09:00]} {[%emt 00:00:22]} 19. Ba1 {[%clk
00:06:43]} {[%emt 00:00:49]} Nxc1 {[%clk 00:08:51]} {[%emt 00:00:14]} 20. Qxc1
{[%clk 00:06:47]} {[%emt 00:00:01]} Ne4 {[%clk 00:08:24]} {[%emt 00:00:33]} 21.
N2f3 {[%clk 00:06:39]} {[%emt 00:00:12]} Bb8 {[%clk 00:07:29]} {[%emt
00:01:00]} 22. Qb2 {[%clk 00:05:12]} {[%emt 00:01:32]} Qg6 {[%clk 00:06:13]}
{[%emt 00:01:21]} 23. Kh1 {[%clk 00:03:52]} {[%emt 00:01:25]} Be5 {[%clk
00:04:29]} {[%emt 00:01:49]} 24. Nxe5 {[%clk 00:03:29]} {[%emt 00:00:28]} Rxe5
{[%clk 00:04:33]} {[%emt 00:00:01]} 25. Nf3 {[%clk 00:03:21]} {[%emt 00:00:13]}
Rh5 {[%clk 00:03:27]} {[%emt 00:01:11]} 26. Ne5 {[%clk 00:01:57]} {[%emt
00:01:29]} Qe6 {[%clk 00:02:24]} {[%emt 00:01:08]} 27. Kh2 {[%clk 00:01:38]}
{[%emt 00:00:23]} Ng5 {[%clk 00:02:07]} {[%emt 00:00:23]} 28. Ng4 {[%clk
00:01:20]} {[%emt 00:00:23]} Rf7 {[%clk 00:01:40]} {[%emt 00:00:33]} 29. Qd4
{[%clk 00:01:05]} {[%emt 00:00:19]} Ne4 {[%clk 00:01:33]} {[%emt 00:00:13]} 30.
Ne5 {[%clk 00:00:44]} {[%emt 00:00:24]} Re7 {[%clk 00:01:11]} {[%emt 00:00:28]}
31. f4 {[%clk 00:00:14]} {[%emt 00:00:35]} b6 {[%clk 00:00:37]} {[%emt
00:00:39]} 32. g4 {[%clk 00:00:18]} {[%emt 00:00:01]} Rh6 {[%clk 00:00:35]}
{[%emt 00:00:07]} 33. Rc1 {[%clk 00:00:08]} {[%emt 00:00:15]} Rf6 {[%clk
00:00:25]} {[%emt 00:00:14]} 34. Rc6 {[%clk 00:00:07]} {[%emt 00:00:07]} Rxf4
{[%clk 00:00:10]} {[%emt 00:00:21]} 35. Rxe6 {[%clk 00:00:10]} {[%emt
00:00:02]} Rxe6 {[%clk 00:00:14]} {[%emt 00:00:01]} 36. Qxd5 {[%clk 00:00:14]}
{[%emt 00:00:01]} Ng5 {[%clk 00:00:15]} {[%emt 00:00:04]} 37. h4 {[%clk
00:00:09]} {[%emt 00:00:09]} Rxe5 {[%clk 00:00:11]} 1-0

[Event "The Kvibergspelen 2024"]
[Site "Kviberg Park Hotel & Conference, Krutvagen 2, Gothenburg, Sweden"]
[Date "2024.09.06"]
[Round "4.12"]
[White "Ask, Josef"]
[Black "Johansson, Roy"]
[Result "1-0"]
[TimeControl "15 minutes + 5 seconds per move from move one (Round 1 - 4) / 90 minutes + 30 seconds per move from move one (Round 5 - 8)"]
[WhiteTitle "FM"]
[WhiteFideId "1704583"]
[BlackFideId "1745972"]
[WhiteElo "2106"]
[BlackElo "1936"]

1. b3 {[%clk 00:15:08]} {[%emt 00:00:02]} e5 {[%clk 00:15:03]} {[%emt
00:00:07]} 2. Bb2 {[%clk 00:15:11]} {[%emt 00:00:02]} d6 {[%clk 00:15:06]}
{[%emt 00:00:02]} 3. e4 {[%clk 00:14:47]} {[%emt 00:00:29]} f5 {[%clk
00:15:03]} {[%emt 00:00:09]} 4. exf5 {[%clk 00:14:44]} {[%emt 00:00:07]} Bxf5
{[%clk 00:14:58]} {[%emt 00:00:10]} 5. Nf3 {[%clk 00:14:37]} {[%emt 00:00:11]}
Nf6 {[%clk 00:14:54]} {[%emt 00:00:10]} 6. Be2 {[%clk 00:14:06]} {[%emt
00:00:37]} Be7 {[%clk 00:14:44]} {[%emt 00:00:15]} 7. d4 {[%clk 00:13:54]}
{[%emt 00:00:17]} e4 {[%clk 00:14:12]} {[%emt 00:00:37]} 8. Nfd2 {[%clk
00:13:51]} {[%emt 00:00:09]} d5 {[%clk 00:14:07]} {[%emt 00:00:09]} 9. g4
{[%clk 00:13:19]} {[%emt 00:00:36]} Be6 {[%clk 00:13:28]} {[%emt 00:00:44]} 10.
g5 {[%clk 00:13:14]} {[%emt 00:00:11]} Nfd7 {[%clk 00:13:26]} {[%emt 00:00:07]}
11. h4 {[%clk 00:12:49]} {[%emt 00:00:30]} Nc6 {[%clk 00:13:06]} {[%emt
00:00:25]} 12. Bg4 {[%clk 00:11:57]} {[%emt 00:00:56]} Nf8 {[%clk 00:13:00]}
{[%emt 00:00:11]} 13. a3 {[%clk 00:11:18]} {[%emt 00:00:45]} Qd7 {[%clk
00:12:55]} {[%emt 00:00:10]} 14. Rg1 {[%clk 00:10:59]} {[%emt 00:00:23]} Ng6
{[%clk 00:12:28]} {[%emt 00:00:32]} 15. Bxe6 {[%clk 00:09:30]} {[%emt
00:01:35]} Qxe6 {[%clk 00:12:29]} {[%emt 00:00:03]} 16. Qg4 {[%clk 00:09:22]}
{[%emt 00:00:13]} Qxg4 {[%clk 00:11:47]} {[%emt 00:00:47]} 17. Rxg4 {[%clk
00:09:26]} {[%emt 00:00:01]} O-O {[%clk 00:11:27]} {[%emt 00:00:25]} 18. Nc3
{[%clk 00:08:23]} {[%emt 00:01:09]} Rad8 {[%clk 00:11:08]} {[%emt 00:00:24]} 19.
Ne2 {[%clk 00:08:06]} {[%emt 00:00:21]} Bd6 {[%clk 00:10:30]} {[%emt 00:00:43]}
20. c4 {[%clk 00:07:33]} {[%emt 00:00:38]} Nce7 {[%clk 00:10:17]} {[%emt
00:00:18]} 21. c5 {[%clk 00:07:02]} {[%emt 00:00:37]} Bh2 {[%clk 00:09:28]}
{[%emt 00:00:53]} 22. Nf1 {[%clk 00:06:52]} {[%emt 00:00:15]} Bf4 {[%clk
00:09:13]} {[%emt 00:00:20]} 23. h5 {[%clk 00:06:47]} {[%emt 00:00:10]} Bxg5
{[%clk 00:08:06]} {[%emt 00:01:12]} 24. Rxg5 {[%clk 00:06:37]} {[%emt
00:00:15]} Nf4 {[%clk 00:08:09]} {[%emt 00:00:02]} 25. Nxf4 {[%clk 00:06:25]}
{[%emt 00:00:18]} Rxf4 {[%clk 00:08:12]} {[%emt 00:00:01]} 26. Bc1 {[%clk
00:05:55]} {[%emt 00:00:36]} Rf3 {[%clk 00:08:13]} {[%emt 00:00:03]} 27. Be3
{[%clk 00:05:50]} {[%emt 00:00:11]} Rdf8 {[%clk 00:08:01]} {[%emt 00:00:17]} 28.
Ra2 {[%emt 00:00:54]} Nf5 {[%clk 00:07:14]} {[%emt 00:00:49]} 29. Re2 {[%clk
00:04:37]} {[%emt 00:00:31]} h6 {[%clk 00:07:05]} {[%emt 00:00:14]} 30. Rg4
{[%clk 00:04:29]} {[%emt 00:00:13]} Rh3 {[%clk 00:06:59]} {[%emt 00:00:12]} 31.
Ng3 {[%clk 00:03:45]} {[%emt 00:00:49]} Nxg3 {[%clk 00:06:34]} {[%emt
00:00:30]} 32. Rxg3 {[%clk 00:03:41]} {[%emt 00:00:09]} Rxh5 {[%clk 00:06:32]}
{[%emt 00:00:06]} 33. Kd2 {[%clk 00:03:34]} {[%emt 00:00:12]} Kf7 {[%clk
00:06:18]} {[%emt 00:00:19]} 34. Bf4 {[%clk 00:03:26]} {[%emt 00:00:14]} c6
{[%clk 00:06:16]} {[%emt 00:00:06]} 35. Bd6 {[%clk 00:03:25]} {[%emt 00:00:06]}
Re8 {[%clk 00:06:15]} {[%emt 00:00:06]} 36. Be5 {[%clk 00:03:27]} {[%emt
00:00:03]} g5 {[%clk 00:06:13]} {[%emt 00:00:07]} 37. Ree3 {[%clk 00:03:15]}
{[%emt 00:00:18]} Ke6 {[%clk 00:06:08]} {[%emt 00:00:09]} 38. f3 {[%clk
00:03:09]} {[%emt 00:00:11]} Rh2+ {[%clk 00:05:44]} {[%emt 00:00:28]} 39. Kc3
{[%clk 00:03:11]} {[%emt 00:00:04]} exf3 {[%clk 00:05:36]} {[%emt 00:00:13]} 40.
Rgxf3 {[%clk 00:03:12]} {[%emt 00:00:04]} g4 {[%clk 00:05:35]} {[%emt
00:00:06]} 41. Bxh2+ {[%emt 00:00:05]} 1-0

[Event "The Kvibergspelen 2024"]
[Site "Kviberg Park Hotel & Conference, Krutvagen 2, Gothenburg, Sweden"]
[Date "2024.09.06"]
[Round "4.13"]
[White "Harila, Per"]
[Black "Lehtonen, Ture"]
[Result "1/2-1/2"]
[TimeControl "15 minutes + 5 seconds per move from move one (Round 1 - 4) / 90 minutes + 30 seconds per move from move one (Round 5 - 8)"]
[WhiteFideId "1707248"]
[BlackFideId "1712446"]
[WhiteElo "1922"]
[BlackElo "2099"]

1. d4 {[%clk 00:15:08]} {[%emt 00:00:02]} e6 {[%clk 00:15:02]} {[%emt
00:00:08]} 2. c4 {[%clk 00:15:08]} {[%emt 00:00:06]} b6 {[%clk 00:15:01]}
{[%emt 00:00:06]} 3. Nf3 {[%clk 00:15:02]} {[%emt 00:00:11]} f5 {[%clk
00:14:49]} {[%emt 00:00:16]} 4. g3 {[%clk 00:15:04]} {[%emt 00:00:03]} Nf6
{[%clk 00:14:42]} {[%emt 00:00:11]} 5. Bg2 {[%clk 00:15:07]} {[%emt 00:00:03]}
Bb4+ {[%clk 00:14:34]} {[%emt 00:00:13]} 6. Bd2 {[%clk 00:15:07]} {[%emt
00:00:06]} a5 {[%clk 00:14:04]} {[%emt 00:00:34]} 7. Ne5 {[%clk 00:13:56]}
{[%emt 00:01:16]} Ra7 {[%clk 00:13:48]} {[%emt 00:00:21]} 8. O-O {[%clk
00:13:56]} {[%emt 00:00:06]} O-O {[%clk 00:13:30]} {[%emt 00:00:23]} 9. Nc3
{[%clk 00:13:40]} {[%emt 00:00:20]} Bxc3 {[%clk 00:13:17]} {[%emt 00:00:17]} 10.
Bxc3 {[%clk 00:13:25]} {[%emt 00:00:20]} d6 {[%clk 00:13:18]} {[%emt 00:00:04]}
11. Nd3 {[%clk 00:12:16]} {[%emt 00:01:15]} Bb7 {[%clk 00:13:17]} {[%emt
00:00:05]} 12. Bxb7 {[%clk 00:12:04]} {[%emt 00:00:18]} Rxb7 {[%clk 00:13:21]}
{[%emt 00:00:01]} 13. b4 {[%clk 00:10:53]} {[%emt 00:01:16]} axb4 {[%clk
00:13:23]} {[%emt 00:00:04]} 14. Bxb4 {[%clk 00:10:44]} {[%emt 00:00:14]} Nc6
{[%clk 00:13:18]} {[%emt 00:00:10]} 15. e3 {[%clk 00:10:03]} {[%emt 00:00:45]}
b5 {[%clk 00:12:29]} {[%emt 00:00:54]} 16. cxb5 {[%clk 00:09:00]} {[%emt
00:01:08]} Rxb5 {[%clk 00:12:30]} {[%emt 00:00:04]} 17. Rb1 {[%clk 00:09:02]}
{[%emt 00:00:03]} Qa8 {[%clk 00:12:00]} {[%emt 00:00:35]} 18. Qc2 {[%clk
00:07:59]} {[%emt 00:01:09]} Nd5 {[%clk 00:11:51]} {[%emt 00:00:13]} 19. Bd2
{[%clk 00:07:58]} {[%emt 00:00:06]} Rfb8 {[%clk 00:11:42]} {[%emt 00:00:14]} 20.
Rxb5 {[%clk 00:08:00]} {[%emt 00:00:04]} Rxb5 {[%clk 00:11:46]} {[%emt
00:00:01]} 21. Rb1 {[%clk 00:08:01]} {[%emt 00:00:04]} Qb7 {[%clk 00:11:02]}
{[%emt 00:00:48]} 22. Rxb5 Qxb5 {[%clk 00:11:06]} 23. a4 {[%clk 00:07:11]}
{[%emt 00:00:56]} Qa6 {[%clk 00:10:24]} {[%emt 00:00:47]} 24. Nf4 {[%clk
00:07:11]} {[%emt 00:00:05]} Nxf4 {[%clk 00:10:21]} {[%emt 00:00:09]} 25. gxf4
{[%clk 00:07:13]} {[%emt 00:00:03]} Kf7 {[%clk 00:09:22]} {[%emt 00:01:04]} 26.
Qb3 {[%clk 00:05:23]} {[%emt 00:01:53]} Ne7 {[%clk 00:09:00]} {[%emt 00:00:28]}
27. a5 {[%clk 00:03:37]} {[%emt 00:01:51]} Nd5 {[%clk 00:05:50]} {[%emt
00:03:15]} 28. Qa4 {[%clk 00:03:20]} {[%emt 00:00:20]} Ke7 {[%clk 00:05:49]}
{[%emt 00:00:08]} 29. Kg2 {[%clk 00:03:11]} {[%emt 00:00:13]} c6 {[%clk
00:05:26]} {[%emt 00:00:29]} 30. Be1 {[%clk 00:02:39]} {[%emt 00:00:38]} Kd7
{[%clk 00:05:15]} {[%emt 00:00:16]} 31. Qb3 {[%clk 00:02:30]} {[%emt 00:00:13]}
Kc7 {[%clk 00:04:59]} {[%emt 00:00:21]} 32. Qa3 {[%clk 00:02:21]} {[%emt
00:00:15]} Ne7 {[%clk 00:03:53]} {[%emt 00:01:11]} 33. Bb4 {[%clk 00:02:20]}
{[%emt 00:00:05]} Nc8 {[%clk 00:03:57]} {[%emt 00:00:01]} 34. Qa2 {[%clk
00:02:03]} {[%emt 00:00:22]} Kd7 {[%clk 00:03:56]} {[%emt 00:00:06]} 35. Qa3
{[%clk 00:01:45]} {[%emt 00:00:23]} Na7 {[%clk 00:03:40]} {[%emt 00:00:22]} 36.
Be1 {[%clk 00:01:25]} {[%emt 00:00:25]} Qb5 {[%clk 00:03:27]} {[%emt 00:00:18]}
37. a6 {[%clk 00:01:18]} {[%emt 00:00:11]} Qb6 {[%clk 00:03:22]} {[%emt
00:00:09]} 38. Qa1 {[%clk 00:01:06]} {[%emt 00:00:18]} Qb5 {[%clk 00:03:10]}
{[%emt 00:00:17]} 39. Kg3 {[%clk 00:01:00]} {[%emt 00:00:11]} Qd5 {[%clk
00:01:59]} {[%emt 00:01:16]} 40. Qb2 {[%clk 00:00:49]} {[%emt 00:00:15]} Qb5
{[%clk 00:02:01]} {[%emt 00:00:04]} 41. Qa1 {[%clk 00:00:50]} {[%emt 00:00:03]}
Qd5 {[%emt 00:00:24]} 1/2-1/2

[Event "The Kvibergspelen 2024"]
[Site "Kviberg Park Hotel & Conference, Krutvagen 2, Gothenburg, Sweden"]
[Date "2024.09.06"]
[Round "4.14"]
[White "Degerfeldt, Sven"]
[Black "Eriksson, Kristian"]
[Result "0-1"]
[TimeControl "15 minutes + 5 seconds per move from move one (Round 1 - 4) / 90 minutes + 30 seconds per move from move one (Round 5 - 8)"]
[WhiteFideId "1717430"]
[BlackFideId "1705172"]
[WhiteElo "1915"]
[BlackElo "2051"]

1. d4 {[%clk 00:15:06]} {[%emt 00:00:03]} Nf6 {[%clk 00:15:07]} {[%emt
00:00:05]} 2. c4 {[%clk 00:15:08]} {[%emt 00:00:02]} e6 {[%clk 00:15:09]}
{[%emt 00:00:03]} 3. Nc3 {[%clk 00:15:11]} {[%emt 00:00:03]} Bb4 {[%clk
00:15:11]} {[%emt 00:00:03]} 4. e3 {[%clk 00:15:14]} {[%emt 00:00:01]} c5
{[%clk 00:15:02]} {[%emt 00:00:13]} 5. Nf3 {[%clk 00:15:14]} {[%emt 00:00:05]}
O-O {[%clk 00:14:30]} {[%emt 00:00:38]} 6. Bd2 {[%clk 00:15:17]} {[%emt
00:00:01]} cxd4 {[%clk 00:14:20]} {[%emt 00:00:16]} 7. exd4 {[%clk 00:15:20]}
{[%emt 00:00:02]} d5 {[%clk 00:14:22]} {[%emt 00:00:03]} 8. a3 {[%clk
00:15:20]} {[%emt 00:00:04]} Be7 {[%clk 00:13:48]} {[%emt 00:00:39]} 9. c5
{[%clk 00:15:10]} {[%emt 00:00:15]} b6 {[%clk 00:13:35]} {[%emt 00:00:19]} 10.
b4 {[%clk 00:15:12]} {[%emt 00:00:02]} bxc5 {[%clk 00:13:28]} {[%emt 00:00:12]}
11. bxc5 {[%clk 00:15:15]} {[%emt 00:00:02]} Nc6 {[%clk 00:13:11]} {[%emt
00:00:23]} 12. Bb5 {[%clk 00:14:03]} {[%emt 00:01:17]} Na5 {[%clk 00:11:03]}
{[%emt 00:02:12]} 13. Ne5 {[%clk 00:10:32]} {[%emt 00:03:36]} Qc7 {[%clk
00:09:47]} {[%emt 00:01:22]} 14. f4 {[%clk 00:09:48]} {[%emt 00:00:48]} a6
{[%clk 00:09:19]} {[%emt 00:00:34]} 15. Bd3 {[%clk 00:09:39]} {[%emt 00:00:13]}
Nd7 {[%clk 00:09:08]} {[%emt 00:00:17]} 16. O-O {[%clk 00:08:56]} {[%emt
00:00:47]} Nc6 {[%clk 00:07:58]} {[%emt 00:01:16]} 17. Ne2 {[%clk 00:07:19]}
{[%emt 00:01:40]} f6 {[%clk 00:07:28]} {[%emt 00:00:36]} 18. Nxc6 Qxc6 {[%clk
00:07:32]} 19. Ng3 {[%clk 00:05:55]} {[%emt 00:00:21]} f5 {[%clk 00:06:52]}
{[%emt 00:00:46]} 20. Qe2 {[%clk 00:05:26]} {[%emt 00:00:34]} g6 {[%clk
00:06:04]} {[%emt 00:00:54]} 21. Rab1 {[%clk 00:05:23]} {[%emt 00:00:08]} Nf6
{[%clk 00:05:22]} {[%emt 00:00:47]} 22. Rb6 {[%clk 00:05:17]} {[%emt 00:00:11]}
Qa4 {[%clk 00:05:25]} {[%emt 00:00:02]} 23. Rxe6 {[%clk 00:04:24]} {[%emt
00:00:57]} Bxe6 {[%clk 00:05:18]} {[%emt 00:00:13]} 24. Qxe6+ {[%clk 00:04:26]}
{[%emt 00:00:02]} Rf7 {[%clk 00:05:13]} {[%emt 00:00:11]} 25. Bb4 {[%clk
00:02:24]} {[%emt 00:02:06]} a5 {[%clk 00:04:52]} {[%emt 00:00:27]} 26. c6
{[%clk 00:01:55]} {[%emt 00:00:35]} axb4 {[%clk 00:03:45]} {[%emt 00:01:11]} 27.
c7 {[%clk 00:01:58]} {[%emt 00:00:02]} Qxa3 {[%clk 00:03:30]} {[%emt 00:00:20]}
28. Bxf5 {[%clk 00:01:29]} {[%emt 00:00:33]} gxf5 {[%clk 00:02:40]} {[%emt
00:00:56]} 29. Nxf5 {[%clk 00:01:32]} {[%emt 00:00:01]} Bf8 {[%clk 00:02:43]}
{[%emt 00:00:03]} 30. c8=Q {[%clk 00:01:22]} {[%emt 00:00:14]} Rxc8 {[%clk
00:02:44]} {[%emt 00:00:05]} 31. Qxc8 {[%clk 00:01:24]} {[%emt 00:00:03]} Qa7
{[%clk 00:02:11]} {[%emt 00:00:37]} 32. Nh6+ {[%clk 00:01:25]} {[%emt
00:00:04]} Kg7 {[%clk 00:02:15]} {[%emt 00:00:02]} 33. Nxf7 {[%clk 00:01:19]}
{[%emt 00:00:11]} Qxd4+ {[%clk 00:02:16]} {[%emt 00:00:04]} 34. Kh1 {[%clk
00:01:21]} {[%emt 00:00:01]} Kxf7 {[%clk 00:02:14]} {[%emt 00:00:09]} 35. Qf5
{[%clk 00:01:20]} {[%emt 00:00:05]} Qe4 {[%clk 00:02:06]} {[%emt 00:00:14]} 36.
Qc8 {[%clk 00:01:13]} {[%emt 00:00:11]} d4 {[%clk 00:02:02]} {[%emt 00:00:10]}
37. Ra1 {[%clk 00:01:13]} {[%emt 00:00:05]} d3 {[%clk 00:01:58]} {[%emt
00:00:08]} 38. h3 {[%clk 00:00:47]} {[%emt 00:00:31]} d2 {[%clk 00:01:44]}
{[%emt 00:00:19]} 39. Qc7+ {[%clk 00:00:40]} {[%emt 00:00:14]} Be7 {[%clk
00:01:45]} {[%emt 00:00:04]} 40. Kh2 {[%clk 00:00:38]} {[%emt 00:00:06]} b3
{[%clk 00:01:33]} {[%emt 00:00:17]} 41. Rf1 {[%clk 00:00:34]} {[%emt 00:00:09]}
Qe2 {[%clk 00:01:31]} {[%emt 00:00:08]} 42. Rf3 {[%clk 00:00:06]} {[%emt
00:00:32]} Qxf3 {[%clk 00:01:07]} {[%emt 00:00:29]} 43. gxf3 {[%clk 00:00:07]}
{[%emt 00:00:04]} d1=Q {[%clk 00:01:10]} {[%emt 00:00:02]} 44. Qc6 {[%clk
00:00:06]} {[%emt 00:00:06]} Qe2+ {[%clk 00:01:08]} {[%emt 00:00:06]} 45. Kg3
{[%clk 00:00:10]} b2 {[%clk 00:01:02]} {[%emt 00:00:14]} 46. f5 {[%clk
00:00:06]} {[%emt 00:00:08]} b1=Q {[%clk 00:01:04]} {[%emt 00:00:03]} 0-1

[Event "The Kvibergspelen 2024"]
[Site "Kviberg Park Hotel & Conference, Krutvagen 2, Gothenburg, Sweden"]
[Date "2024.09.06"]
[Round "4.15"]
[White "Nilsson, Oliver"]
[Black "Ottgard, Andreas"]
[Result "1-0"]
[TimeControl "15 minutes + 5 seconds per move from move one (Round 1 - 4) / 90 minutes + 30 seconds per move from move one (Round 5 - 8)"]
[WhiteFideId "1730177"]
[BlackFideId "1730592"]
[WhiteElo "2050"]
[BlackElo "1931"]

1. d4 {[%clk 00:15:03]} {[%emt 00:00:06]} Nf6 {[%clk 00:15:08]} {[%emt
00:00:04]} 2. Nf3 {[%clk 00:14:59]} {[%emt 00:00:08]} g6 {[%clk 00:15:02]}
{[%emt 00:00:11]} 3. Nbd2 {[%clk 00:14:51]} {[%emt 00:00:14]} c5 {[%clk
00:13:48]} {[%emt 00:01:19]} 4. dxc5 {[%clk 00:14:13]} {[%emt 00:00:43]} Na6
{[%clk 00:12:09]} {[%emt 00:01:44]} 5. a3 {[%clk 00:13:17]} {[%emt 00:01:01]}
Nxc5 {[%clk 00:12:06]} {[%emt 00:00:07]} 6. b4 {[%clk 00:13:18]} {[%emt
00:00:04]} Ne6 {[%clk 00:11:08]} {[%emt 00:01:04]} 7. Bb2 {[%clk 00:13:14]}
{[%emt 00:00:10]} Bg7 {[%clk 00:11:10]} 8. c4 {[%clk 00:12:46]} {[%emt
00:00:33]} O-O {[%clk 00:10:58]} {[%emt 00:00:17]} 9. g3 {[%clk 00:12:16]}
{[%emt 00:00:36]} b6 {[%clk 00:10:27]} {[%emt 00:00:36]} 10. Bg2 {[%clk
00:12:14]} {[%emt 00:00:07]} Bb7 {[%clk 00:10:09]} {[%emt 00:00:24]} 11. O-O
{[%clk 00:12:14]} {[%emt 00:00:04]} a5 {[%clk 00:08:50]} {[%emt 00:01:24]} 12.
Qb3 {[%clk 00:11:49]} {[%emt 00:00:29]} d5 {[%clk 00:07:08]} {[%emt 00:01:47]}
13. Ne5 {[%clk 00:11:07]} {[%emt 00:00:48]} dxc4 {[%clk 00:06:46]} {[%emt
00:00:26]} 14. Ndxc4 {[%clk 00:11:05]} {[%emt 00:00:08]} Bxg2 {[%clk 00:06:42]}
{[%emt 00:00:09]} 15. Kxg2 {[%clk 00:11:07]} {[%emt 00:00:03]} a4 {[%clk
00:05:43]} {[%emt 00:01:05]} 16. Qf3 {[%clk 00:10:35]} {[%emt 00:00:36]} Nd4
{[%clk 00:04:47]} {[%emt 00:01:01]} 17. Bxd4 {[%clk 00:09:54]} {[%emt
00:00:46]} Qxd4 {[%clk 00:04:49]} {[%emt 00:00:03]} 18. Rad1 {[%clk 00:08:48]}
{[%emt 00:01:11]} Qe4 {[%clk 00:04:49]} {[%emt 00:00:05]} 19. Qxe4 {[%clk
00:08:26]} {[%emt 00:00:26]} Nxe4 {[%clk 00:04:51]} {[%emt 00:00:04]} 20. Nd7
{[%clk 00:08:16]} {[%emt 00:00:16]} Nc3 {[%clk 00:04:05]} {[%emt 00:00:50]} 21.
Rd2 {[%clk 00:08:07]} {[%emt 00:00:14]} Rfd8 {[%clk 00:03:53]} {[%emt
00:00:16]} 22. Ncxb6 {[%clk 00:07:46]} {[%emt 00:00:27]} Rab8 {[%clk 00:03:17]}
{[%emt 00:00:41]} 23. Rd3 {[%clk 00:05:41]} {[%emt 00:02:11]} Nxe2 {[%clk
00:02:39]} {[%emt 00:00:43]} 24. Rfd1 {[%clk 00:05:41]} {[%emt 00:00:04]} Nc3
{[%clk 00:01:34]} {[%emt 00:01:09]} 25. Nf6+ {[%clk 00:05:36]} {[%emt
00:00:10]} Bxf6 {[%clk 00:01:35]} {[%emt 00:00:05]} 26. Rxd8+ Rxd8 {[%clk
00:01:39]} 27. Rxd8+ {[%clk 00:05:36]} {[%emt 00:00:07]} Kg7 {[%clk 00:01:42]}
{[%emt 00:00:01]} 28. Nd5 {[%clk 00:05:04]} {[%emt 00:00:37]} Nb5 {[%clk
00:00:32]} {[%emt 00:01:15]} 29. Nxf6 {[%clk 00:05:02]} {[%emt 00:00:06]} Kxf6
{[%clk 00:00:34]} {[%emt 00:00:03]} 30. Ra8 {[%clk 00:04:34]} {[%emt 00:00:33]}
Nxa3 {[%clk 00:00:36]} {[%emt 00:00:03]} 31. Rxa4 {[%clk 00:04:36]} {[%emt
00:00:05]} Nb5 {[%clk 00:00:35]} {[%emt 00:00:06]} 32. Ra5 {[%clk 00:04:36]}
{[%emt 00:00:04]} Nd4 {[%clk 00:00:29]} {[%emt 00:00:10]} 33. Rd5 {[%clk
00:04:27]} {[%emt 00:00:13]} e5 {[%clk 00:00:19]} {[%emt 00:00:16]} 34. f4
{[%clk 00:04:14]} {[%emt 00:00:18]} Nc2 {[%clk 00:00:06]} {[%emt 00:00:19]} 35.
fxe5+ {[%clk 00:03:53]} {[%emt 00:00:26]} Ke6 {[%clk 00:00:10]} 36. Rb5 {[%clk
00:03:57]} {[%emt 00:00:01]} Nd4 {[%clk 00:00:07]} {[%emt 00:00:07]} 37. Rb7
{[%clk 00:03:56]} {[%emt 00:00:06]} Nc6 {[%clk 00:00:09]} {[%emt 00:00:04]} 38.
b5 {[%clk 00:03:56]} {[%emt 00:00:05]} Nxe5 {[%clk 00:00:11]} {[%emt 00:00:03]}
39. Rc7 {[%clk 00:03:26]} {[%emt 00:00:34]} Kd6 {[%clk 00:00:13]} {[%emt
00:00:04]} 40. b6 {[%clk 00:02:58]} {[%emt 00:00:33]} h5 {[%clk 00:00:10]}
{[%emt 00:00:08]} 41. Rc3 {[%clk 00:02:48]} {[%emt 00:00:13]} Nc6 {[%clk
00:00:08]} {[%emt 00:00:09]} 42. b7 {[%clk 00:02:50]} {[%emt 00:00:04]} Nb8
{[%clk 00:00:09]} {[%emt 00:00:04]} 43. Rc8 {[%clk 00:02:52]} {[%emt 00:00:02]}
1-0